bitfinex-derivatives/quotes_BTCF0:USTF0_20250620
["timestamp","ask_amount","ask_price","bid_price","bid_amount"]
[1750379066988,2.18307523,104740.0,104730.0,0.54566449]
[1750379067694,2.10710691,104740.0,104730.0,0.54566449]
[1750379068089,2.10710691,104740.0,104730.0,0.29133129]
[1750379068287,2.10710691,104740.0,104730.0,0.03947407]
[1750379068990,2.10710691,104740.0,104730.0,0.23040727]
[1750379069293,2.10710691,104740.0,104730.0,0.03947407]
[1750379071098,2.10710691,104740.0,104730.0,0.23040727]
[1750379071496,2.10710691,104740.0,104730.0,0.03947407]
[1750379072193,2.10710691,104740.0,104730.0,0.23040717]
[1750379073798,2.10710691,104740.0,104730.0,0.26420717]
[1750379074984,2.10710691,104740.0,104730.0,0.07327407]
[1750379076088,2.10710691,104740.0,104730.0,0.26380727]
[1750379076495,2.10710691,104740.0,104730.0,0.07327407]
[1750379076797,2.24032198,104740.0,104730.0,0.07327407]
[1750379077198,2.24032198,104740.0,104730.0,0.26420717]
[1750379080303,2.24032198,104740.0,104730.0,0.07327407]
[1750379081605,2.10710691,104740.0,104730.0,0.07327407]
[1750379082003,2.10710691,104740.0,104730.0,0.26420727]
[1750379082705,1.74630691,104740.0,104730.0,0.26420727]
[1750379082904,2.10710691,104740.0,104730.0,0.26420727]
[1750379083306,2.24032198,104740.0,104730.0,0.26420727]
[1750379084410,2.24032198,104740.0,104730.0,0.07327407]
[1750379084810,2.24032198,104740.0,104730.0,0.26420717]
[1750379085007,2.24032198,104740.0,104730.0,0.07327407]
[1750379086108,2.55930117,104740.0,104730.0,0.00557407]
[1750379086302,2.59300117,104740.0,104730.0,0.00012109]
[1750379086496,2.4597861,104740.0,104730.0,0.00012109]
[1750379086714,0.1909331,104730.0,104720.0,0.06565488]
[1750379087008,0.1909331,104730.0,104720.0,0.06527739]
[1750379087009,2.1521868,104730.0,104720.0,0.06527739]
[1750379087210,2.2952328,104730.0,104720.0,0.06527739]
[1750379087407,2.2952328,104730.0,104720.0,0.00057739]
[1750379087609,2.3268328,104730.0,104720.0,0.00057739]
[1750379088005,2.8268328,104730.0,104720.0,0.00057739]
[1750379088313,2.8268328,104730.0,104720.0,0.00097739]
[1750379088513,2.69331748,104730.0,104720.0,0.00097739]
[1750379088707,2.69331748,104730.0,104720.0,0.00197739]
[1750379088908,2.69331748,104730.0,104720.0,0.00497739]
[1750379089513,3.51895748,104730.0,104720.0,0.00497739]
[1750379089810,3.51895748,104730.0,104720.0,0.00457739]
[1750379090515,3.51895748,104730.0,104720.0,0.00497739]
[1750379098130,3.6524728,104730.0,104720.0,0.00397739]
[1750379098430,3.6524728,104730.0,104720.0,0.00197739]
[1750379098927,3.6534728,104730.0,104720.0,0.03557739]
[1750379099229,3.6554728,104730.0,104720.0,0.03557739]
[1750379099630,3.6238728,104730.0,104720.0,0.03557739]
[1750379099819,3.49035748,104730.0,104720.0,0.06807739]
[1750379100024,3.49035748,104730.0,104720.0,0.10287739]
[1750379100632,3.6238728,104730.0,104720.0,0.10287739]
[1750379102933,3.6238728,104730.0,104720.0,0.29382879]
[1750379103123,2.65591361,104730.0,104720.0,0.29382879]
[1750379103327,3.5583328,104730.0,104720.0,0.10287739]
[1750379103633,3.42481748,104730.0,104720.0,0.10287739]
[1750379103834,3.42481748,104730.0,104720.0,0.29382879]
[1750379104230,3.42481748,104730.0,104720.0,0.10705146]
[1750379105529,3.5200202,104730.0,104720.0,0.10705146]
[1750379106339,3.42481748,104730.0,104720.0,0.10705146]
[1750379110846,3.42481748,104730.0,104720.0,0.29800286]
[1750379113746,3.42481748,104730.0,104720.0,0.10705146]
[1750379114044,3.42481748,104730.0,104720.0,0.29800286]
[1750379115742,3.5583328,104730.0,104720.0,0.29800286]
[1750379115931,3.4583328,104730.0,104720.0,0.29800286]
[1750379117940,2.8748928,104730.0,104720.0,0.29800286]
[1750379118144,2.1162335,104730.0,104720.0,0.51698205]
[1750379118439,2.24310051,104730.0,104720.0,0.51698205]
[1750379118844,2.10958519,104730.0,104720.0,0.51698205]
[1750379119444,2.10858519,104730.0,104720.0,0.51798205]
[1750379120135,2.10658519,104730.0,104720.0,0.51798205]
[1750379120536,2.2019212,104730.0,104720.0,0.51798205]
[1750379120839,2.2019212,104730.0,104720.0,0.29900286]
[1750379120840,2.3928544,104730.0,104720.0,0.29900286]
[1750379122244,2.7536544,104730.0,104720.0,0.29900286]
[1750379126252,2.2019212,104730.0,104720.0,0.29900286]
[1750379126451,2.5627212,104730.0,104720.0,0.29900286]
[1750379126751,2.2019212,104730.0,104720.0,0.29900286]
[1750379127350,2.2019212,104730.0,104720.0,0.59370286]
[1750379128353,2.3928543,104730.0,104720.0,0.59370286]
[1750379129046,2.2019212,104730.0,104720.0,0.59370286]
[1750379130955,2.2019212,104730.0,104720.0,0.81268205]
[1750379132655,1.39966201,104730.0,104720.0,0.81268205]
[1750379132851,2.2017212,104730.0,104720.0,0.81268205]
[1750379133456,2.2017212,104730.0,104720.0,0.59370286]
[1750379133653,2.2017212,104730.0,104720.0,0.81268205]
[1750379137060,2.5625212,104730.0,104720.0,0.59370286]
[1750379138555,2.2017212,104730.0,104720.0,0.59370286]
[1750379140360,2.2017212,104730.0,104720.0,0.81268205]
[1750379140956,1.3760812,104730.0,104720.0,0.81268205]
[1750379142661,1.5670143,104730.0,104720.0,0.81268205]
[1750379143362,1.3760812,104730.0,104720.0,0.81268205]
[1750379153370,1.3760812,104730.0,104720.0,0.59370286]
[1750379153566,1.3760812,104730.0,104720.0,0.81268205]
[1750379155366,1.3760812,104730.0,104720.0,0.59370286]
[1750379155568,1.4392812,104730.0,104720.0,0.59370286]
[1750379155972,1.6302143,104730.0,104720.0,0.59370286]
[1750379156169,1.4392812,104730.0,104720.0,0.59370286]
[1750379156672,1.27838362,104730.0,104720.0,0.59370286]
[1750379156866,1.10940443,104730.0,104720.0,0.59370286]
[1750379157066,1.32838362,104730.0,104720.0,0.59370286]
[1750379158370,1.32838362,104730.0,104720.0,0.81268205]
[1750379158573,1.26518362,104730.0,104720.0,0.81268205]
[1750379158974,1.26486362,104730.0,104720.0,0.81268205]
[1750379159176,1.26486362,104730.0,104720.0,1.17348205]
[1750379160377,1.04568443,104730.0,104720.0,1.39246124]
[1750379160974,1.26466362,104730.0,104720.0,1.17348205]
[1750379161979,0.68190362,104730.0,104720.0,1.17348205]
[1750379162273,1.26466362,104730.0,104720.0,1.17348205]
[1750379162678,1.26466362,104730.0,104720.0,1.39246124]
[1750379162971,1.12922362,104730.0,104720.0,1.17348205]
[1750379163678,1.12922362,104730.0,104720.0,1.39246124]
[1750379165175,0.54646362,104730.0,104720.0,1.39246124]
[1750379165377,1.12918362,104730.0,104720.0,1.39246124]
[1750379165874,0.54646362,104730.0,104720.0,1.17348205]
[1750379166174,1.12918362,104730.0,104720.0,1.17348205]
[1750379172783,1.03384761,104730.0,104720.0,1.17348205]
[1750379174195,1.12918362,104730.0,104720.0,1.17348205]
[1750379174385,1.19208362,104730.0,104720.0,1.17348205]
[1750379176087,1.19208362,104730.0,104720.0,0.91970286]
[1750379180288,1.19208362,104730.0,104720.0,0.52640286]
[1750379180483,1.22318362,104730.0,104720.0,0.52640286]
[1750379182189,1.12784761,104730.0,104720.0,0.52640286]
[1750379182384,1.15124405,104730.0,104720.0,0.44039963]
[1750379183591,1.15124405,104730.0,104720.0,0.4445737]
[1750379184492,1.34217715,104730.0,104720.0,0.4445737]
[1750379185295,1.56115634,104730.0,104720.0,0.4445737]
[1750379185494,1.34217715,104730.0,104720.0,0.4445737]
[1750379185690,1.16878176,104730.0,104720.0,0.4445737]
[1750379186095,1.311153,104730.0,104720.0,0.4445737]
[1750379187892,1.98625134,104730.0,104720.0,0.4445737]
[1750379188097,1.99093219,104730.0,104720.0,0.4441737]
[1750379188298,1.99093219,104730.0,104720.0,0.4445737]
[1750379188796,2.49093219,104730.0,104720.0,0.4445737]
[1750379188996,2.49093219,104730.0,104720.0,0.4435737]
[1750379189197,2.49193219,104730.0,104720.0,0.4435737]
[1750379190197,2.49393219,104730.0,104720.0,0.29927407]
[1750379191098,2.62744751,104730.0,104720.0,0.29887407]
[1750379191401,2.62744751,104730.0,104720.0,0.29927407]
[1750379191589,2.49393219,104730.0,104720.0,0.29927407]
[1750379192393,2.30299909,104730.0,104710.0,0.3349809]
[1750379192599,1.31731707,104720.0,104710.0,0.3349809]
[1750379192799,1.59071351,104720.0,104710.0,0.3349809]
[1750379193100,1.8108956,104720.0,104710.0,0.3349809]
[1750379193298,1.8108956,104720.0,104710.0,0.2872386]
[1750379193692,1.8108956,104720.0,104710.0,0.2882386]
[1750379194296,2.3108956,104720.0,104710.0,0.2882386]
[1750379195406,2.3108956,104720.0,104710.0,0.2404963]
[1750379195796,1.87293722,104720.0,104710.0,0.2404963]
[1750379195998,2.3108956,104720.0,104710.0,0.2404963]
[1750379197800,1.87293722,104720.0,104710.0,0.2404963]
[1750379197996,2.3108956,104720.0,104710.0,0.2404963]
[1750379198904,2.3108956,104720.0,104710.0,0.3037963]
[1750379200803,2.1199442,104720.0,104710.0,0.3037963]
[1750379201004,2.6690442,104720.0,104710.0,0.3037963]
[1750379201205,2.6365442,104720.0,104710.0,0.3373963]
[1750379202403,2.2444442,104720.0,104710.0,0.3373963]
[1750379202805,2.4353956,104720.0,104710.0,0.3373963]
[1750379203304,2.7961956,104720.0,104710.0,0.3373963]
[1750379203507,2.77279916,104720.0,104710.0,0.29912564]
[1750379204006,2.41199916,104720.0,104710.0,0.29912564]
[1750379204305,2.77279916,104720.0,104710.0,0.29912564]
[1750379204506,2.33484078,104720.0,104710.0,0.29912564]
[1750379204805,2.34364258,104720.0,104710.0,0.29912564]
[1750379205607,2.34364258,104720.0,104710.0,0.51810483]
[1750379206109,1.93367199,104720.0,104710.0,0.51810483]
[1750379206411,2.12462339,104720.0,104710.0,0.29912564]
[1750379207105,2.48542339,104720.0,104710.0,0.29912564]
[1750379207408,2.70440258,104720.0,104710.0,0.29912564]
[1750379207704,2.70056356,104720.0,104710.0,0.29912564]
[1750379208608,2.26260518,104720.0,104710.0,0.29912564]
[1750379208805,2.70056356,104720.0,104710.0,0.29912564]
[1750379209607,2.67757187,104720.0,104710.0,0.29912564]
[1750379209804,2.67757187,104720.0,104710.0,0.30329971]
[1750379210303,2.67757187,104720.0,104710.0,0.59799971]
[1750379211507,2.67757187,104720.0,104710.0,0.55025741]
[1750379211701,2.67757187,104720.0,104710.0,0.51665741]
[1750379211907,2.77277187,104720.0,104710.0,0.48565741]
[1750379212207,2.77277187,104720.0,104710.0,0.48485741]
[1750379212407,2.77277187,104720.0,104710.0,0.48525741]
[1750379216107,2.77277187,104720.0,104710.0,0.19055741]
[1750379219514,2.90628719,104720.0,104710.0,0.19055741]
[1750379219914,2.46832881,104720.0,104710.0,0.19055741]
[1750379220114,2.90628719,104720.0,104710.0,0.19055741]
[1750379222713,2.90628719,104720.0,104710.0,0.03787407]
[1750379223011,2.90628719,104720.0,104710.0,0.00557407]
[1750379223317,2.77277187,104720.0,104710.0,0.00557407]
[1750379223817,0.1909696,104710.0,104700.0,0.0008]
[1750379224013,1.5872433,104710.0,104700.0,0.0008]
[1750379224220,1.73101196,104710.0,104700.0,0.0008]
[1750379224619,0.1909878,104700.0,104690.0,0.64486016]
[1750379224812,1.99702618,104700.0,104690.0,0.30240916]
[1750379225020,2.13976932,104700.0,104690.0,0.30240916]
[1750379225212,2.2350938,104700.0,104690.0,0.30240916]
[1750379225912,2.13976932,104700.0,104690.0,0.30540916]
[1750379226112,2.23509111,104700.0,104690.0,0.33710916]
[1750379226613,0.74704412,104700.0,104690.0,0.55608835]
[1750379226819,1.46436412,104700.0,104690.0,0.91688835]
[1750379227015,1.65535192,104700.0,104690.0,0.55708835]
[1750379227420,2.15535192,104700.0,104690.0,0.55708835]
[1750379227719,2.15535192,104700.0,104690.0,0.33810916]
[1750379227921,2.15535192,104700.0,104690.0,0.63280916]
[1750379228521,2.15535192,104700.0,104690.0,0.85178835]
[1750379228722,1.65535192,104700.0,104690.0,0.85178835]
[1750379230026,1.87433111,104700.0,104690.0,0.85178835]
[1750379230716,1.68334331,104700.0,104690.0,0.85178835]
[1750379231023,1.46436412,104700.0,104690.0,0.85178835]
[1750379231223,1.65535192,104700.0,104690.0,0.85178835]
[1750379231419,1.87433111,104700.0,104690.0,0.85178835]
[1750379232421,1.68334331,104700.0,104690.0,0.85178835]
[1750379233125,1.87433111,104700.0,104690.0,0.85178835]
[1750379234023,1.68334331,104700.0,104690.0,0.85178835]
[1750379235425,1.87433111,104700.0,104690.0,0.85178835]
[1750379239219,1.87433111,104700.0,104690.0,0.85596242]
[1750379239418,1.87433111,104700.0,104690.0,0.63698323]
[1750379239723,1.89732935,104700.0,104690.0,0.63698323]
[1750379241321,1.89732935,104700.0,104690.0,0.60528323]
[1750379241525,2.35392935,104700.0,104690.0,0.60528323]
[1750379241725,2.33093111,104700.0,104690.0,0.51925213]
[1750379242020,2.83093111,104700.0,104690.0,0.51965213]
[1750379245726,2.39297273,104700.0,104690.0,0.22495213]
[1750379245925,2.83093111,104700.0,104690.0,0.22495213]
[1750379246130,2.83093111,104700.0,104690.0,0.25635213]
[1750379248131,2.83093111,104700.0,104690.0,0.19465213]
[1750379248331,2.73560932,104700.0,104690.0,0.19465213]
[1750379257441,2.73560932,104700.0,104690.0,0.48935213]
[1750379258137,2.86912464,104700.0,104690.0,0.48935213]
[1750379260037,2.96452296,104700.0,104690.0,0.48935213]
[1750379260238,2.83100764,104700.0,104690.0,0.48935213]
[1750379269857,2.73560932,104700.0,104690.0,0.48935213]
[1750379270257,2.73560932,104700.0,104690.0,0.52075213]
[1750379270450,2.83100208,104700.0,104690.0,0.52075213]
[1750379271256,2.3930437,104700.0,104690.0,0.52075213]
[1750379271555,2.83036208,104700.0,104690.0,0.55225213]
[1750379276159,2.3924037,104700.0,104690.0,0.55225213]
[1750379276360,2.83036208,104700.0,104690.0,0.55225213]
[1750379276761,2.73496932,104700.0,104690.0,0.30327407]
[1750379278163,2.73496932,104700.0,104690.0,0.49427997]
[1750379278458,2.73496932,104700.0,104690.0,0.49127997]
[1750379278655,2.73496932,104700.0,104690.0,0.49027997]
[1750379280566,2.86848464,104700.0,104690.0,0.49027997]
[1750379281269,2.86848464,104700.0,104690.0,0.19557997]
[1750379281563,2.43052626,104700.0,104690.0,0.19557997]
[1750379281869,2.86848464,104700.0,104690.0,0.19557997]
[1750379282465,2.83568464,104700.0,104690.0,0.19557997]
[1750379282662,2.80548464,104700.0,104690.0,0.26087997]
[1750379287169,2.80548464,104700.0,104690.0,0.55557997]
[1750379287769,2.80548464,104700.0,104690.0,0.29927407]
[1750379287967,3.08956383,104700.0,104690.0,0.29927407]
[1750379288268,2.95604851,104700.0,104690.0,0.00417407]
[1750379288565,3.08956383,104700.0,104690.0,0.00417407]
[1750379288866,3.08956383,104700.0,104690.0,0.00457407]
[1750379289963,2.87058464,104700.0,104690.0,0.19558007]
[1750379291369,2.87058464,104700.0,104690.0,0.00457407]
[1750379294467,2.87058464,104700.0,104690.0,0.19557997]
[1750379294668,2.73706932,104700.0,104690.0,0.19557997]
[1750379296367,2.87058464,104700.0,104690.0,0.19557997]
[1750379298580,2.87058464,104700.0,104690.0,0.00457407]
[1750379299971,2.68247674,104700.0,104690.0,0.00457407]
[1750379300276,2.73247674,104700.0,104690.0,0.00457407]
[1750379300468,2.95145593,104700.0,104690.0,0.00457407]
[1750379307580,2.95145593,104700.0,104690.0,0.00417407]
[1750379307780,2.95145593,104700.0,104690.0,0.00457407]
[1750379308883,2.81794061,104700.0,104690.0,0.00457407]
[1750379309780,2.59896142,104700.0,104690.0,0.00457407]
[1750379310481,2.73229947,104700.0,104690.0,0.00457407]
[1750379316586,2.81794061,104700.0,104690.0,0.00457407]
[1750379317589,0.0477595,104680.0,104660.0,0.33529103]
[1750379317788,1.12633709,104680.0,104670.0,0.0648]
[1750379318089,2.16684618,104680.0,104670.0,0.0948]
[1750379318491,2.16684618,104680.0,104670.0,0.0956]
[1750379318988,2.38582537,104680.0,104670.0,0.0956]
[1750379319387,2.40112523,104680.0,104670.0,0.0956]
[1750379319690,2.90112523,104680.0,104670.0,0.0956]
[1750379320484,2.85336573,104680.0,104670.0,0.2866424]
[1750379320685,2.71995465,104680.0,104670.0,0.2866424]
[1750379321392,2.71995465,104680.0,104670.0,0.2866425]
[1750379321794,2.71995465,104680.0,104670.0,0.0956]
[1750379322696,2.75115465,104680.0,104670.0,0.0956]
[1750379324794,2.31319627,104680.0,104670.0,0.2866425]
[1750379324996,2.75115465,104680.0,104670.0,0.2866425]
[1750379326687,2.70339515,104680.0,104670.0,0.2866425]
[1750379327099,2.67219515,104680.0,104670.0,0.2866425]
[1750379329592,2.79016113,104680.0,104670.0,0.20476793]
[1750379330296,2.76734722,104680.0,104670.0,0.20476793]
[1750379331289,2.80034722,104680.0,104670.0,0.20476793]
[1750379332289,2.80034722,104680.0,104670.0,0.19601657]
[1750379332489,2.86234722,104680.0,104670.0,0.19601657]
[1750379335398,2.86234722,104680.0,104670.0,0.00497407]
[1750379337599,3.08132641,104680.0,104670.0,0.00497407]
[1750379338099,2.98617434,104680.0,104670.0,0.00497407]
[1750379338500,2.76719515,104680.0,104670.0,0.00497407]
[1750379339901,2.90060623,104680.0,104670.0,0.00497407]
[1750379341898,2.90060623,104680.0,104670.0,0.19601647]
[1750379342097,2.90060623,104680.0,104670.0,0.00497407]
[1750379343402,2.90060623,104680.0,104670.0,0.19601657]
[1750379344303,2.90060623,104680.0,104670.0,0.00497407]
[1750379345206,2.90060623,104680.0,104670.0,0.19601647]
[1750379345706,2.90060623,104680.0,104670.0,0.00497407]
[1750379348808,2.76719515,104680.0,104670.0,0.00497407]
[1750379349106,2.9004902,104680.0,104670.0,0.00497407]
[1750379349609,3.21946939,104680.0,104670.0,0.00497407]
[1750379350113,3.21946939,104680.0,104670.0,0.00417407]
[1750379350409,3.21946939,104680.0,104670.0,0.00457407]
[1750379350907,3.21946939,104680.0,104670.0,0.00657407]
[1750379352111,3.21946939,104680.0,104670.0,0.00957407]
[1750379353821,3.0004902,104680.0,104670.0,0.00957407]
[1750379356319,3.21946939,104680.0,104670.0,0.00957407]
[1750379357923,3.0004902,104680.0,104670.0,0.00957407]
[1750379360521,2.2844502,104680.0,104670.0,0.00957407]
[1750379360727,2.9002502,104680.0,104670.0,0.20061607]
[1750379360928,2.76695515,104680.0,104670.0,0.23381607]
[1750379361119,2.76695515,104680.0,104670.0,0.29661607]
[1750379361320,2.73535515,104680.0,104670.0,0.29661607]
[1750379361520,2.70495515,104680.0,104670.0,0.29661607]
[1750379363328,2.26699677,104680.0,104670.0,0.29661607]
[1750379363528,2.70495515,104680.0,104670.0,0.29661607]
[1750379366330,2.8382502,104680.0,104670.0,0.29661607]
[1750379366725,2.8382502,104680.0,104670.0,0.10557407]
[1750379367026,2.8382502,104680.0,104670.0,0.59131597]
[1750379367027,2.9045502,104680.0,104670.0,0.59131597]
[1750379370530,2.7574355,104680.0,104670.0,0.59131597]
[1750379370730,2.62414045,104680.0,104670.0,0.59131597]
[1750379371935,2.7574355,104680.0,104670.0,0.59131597]
[1750379372334,2.7890355,104680.0,104670.0,0.59131597]
[1750379372535,2.8200355,104680.0,104670.0,0.59131597]
[1750379372737,2.8526355,104680.0,104670.0,0.59131597]
[1750379375134,2.41467712,104680.0,104670.0,0.59131597]
[1750379375434,2.8526355,104680.0,104670.0,0.59131597]
[1750379378042,2.71934045,104680.0,104670.0,0.59131597]
[1750379379740,2.65574045,104680.0,104670.0,0.59131597]
[1750379380142,2.65570045,104680.0,104670.0,0.59131597]
[1750379380841,2.46467675,104680.0,104670.0,0.59131597]
[1750379381242,1.96467675,104680.0,104670.0,0.59131597]
[1750379381837,1.93307675,104680.0,104670.0,0.59131597]
[1750379383042,1.35187675,104680.0,104670.0,0.59131597]
[1750379383345,1.35329756,104680.0,104670.0,0.81029516]
[1750379383644,1.57227675,104680.0,104670.0,0.59131597]
[1750379383837,0.99107675,104680.0,104670.0,0.59131597]
[1750379384033,1.44852802,104680.0,104670.0,0.81029516]
[1750379384743,1.85853081,104680.0,104670.0,0.81029516]
[1750379384942,1.85853081,104680.0,104670.0,0.59031597]
[1750379385144,1.85853081,104680.0,104670.0,0.58731597]
[1750379385338,1.85853081,104680.0,104670.0,0.58931597]
[1750379385544,1.44852802,104680.0,104670.0,0.58931597]
[1750379386342,1.44852802,104680.0,104670.0,0.80829516]
[1750379386645,1.31852802,104680.0,104670.0,0.80829516]
[1750379386842,1.31852802,104680.0,104670.0,1.16909516]
[1750379387942,1.50955192,104680.0,104670.0,1.16909516]
[1750379388344,1.31852802,104680.0,104670.0,1.16909516]
[1750379389448,1.22329756,104680.0,104670.0,1.16909516]
[1750379391846,1.22329756,104680.0,104670.0,0.95011597]
[1750379392051,1.30329756,104680.0,104670.0,0.80829516]
[1750379392252,1.30329756,104680.0,104670.0,1.16909516]
[1750379392551,1.30329756,104680.0,104670.0,0.80829516]
[1750379392750,1.30329756,104680.0,104670.0,0.58931597]
[1750379392954,1.52227675,104680.0,104670.0,0.80829516]
[1750379393149,1.55377675,104680.0,104670.0,0.80829516]
[1750379393351,1.33479756,104680.0,104670.0,0.80829516]
[1750379395557,1.55377675,104680.0,104670.0,0.58931597]
[1750379395757,1.55377675,104680.0,104670.0,0.52651597]
[1750379395957,1.61607675,104680.0,104670.0,0.52651597]
[1750379399358,1.71130721,104680.0,104670.0,0.52651597]
[1750379400260,1.7493718,104680.0,104670.0,0.52651597]
[1750379400459,1.7493718,104680.0,104670.0,0.74549516]
[1750379400662,1.61607675,104680.0,104670.0,0.71229516]
[1750379402855,1.61607675,104680.0,104670.0,0.49331597]
[1750379403050,2.38687994,104680.0,104670.0,0.49331637]
[1750379403259,1.97687675,104680.0,104670.0,0.49331637]
[1750379403452,2.1101718,104680.0,104670.0,0.49331637]
[1750379403764,2.8011959,104680.0,104670.0,0.49331637]
[1750379403949,1.00189342,104680.0,104670.0,0.77839556]
[1750379404151,1.25327261,104680.0,104670.0,0.77839556]
[1750379404356,1.25327261,104680.0,104670.0,0.87599556]
[1750379404357,1.12327101,104680.0,104670.0,0.87599556]
[1750379404862,1.83875101,104680.0,104670.0,0.87599556]
[1750379405049,1.83975101,104680.0,104670.0,0.87499556]
[1750379405360,1.33975101,104680.0,104670.0,0.87299556]
[1750379405560,1.34075101,104680.0,104670.0,0.87299556]
[1750379405759,1.33975101,104680.0,104670.0,0.87299556]
[1750379406061,1.33875101,104680.0,104670.0,0.87499556]
[1750379407361,1.43875101,104680.0,104670.0,0.87499556]
[1750379407664,1.33875101,104680.0,104670.0,0.87499556]
[1750379407965,0.62327101,104680.0,104670.0,0.87499556]
[1750379408162,1.33875101,104680.0,104670.0,0.87499556]
[1750379408371,1.33875101,104680.0,104670.0,1.16969556]
[1750379409073,1.17893719,104680.0,104670.0,1.16969556]
[1750379409466,1.29060574,104680.0,104670.0,1.16969556]
[1750379409872,0.57512574,104680.0,104670.0,1.16969556]
[1750379410167,1.29060574,104680.0,104670.0,1.16969556]
[1750379410667,0.57512574,104680.0,104670.0,1.16969556]
[1750379410969,1.02287229,104680.0,104670.0,1.16969556]
[1750379411157,0.44183229,104680.0,104670.0,1.16969556]
[1750379411873,0.45503128,104680.0,104670.0,1.16969556]
[1750379412065,0.57503128,104680.0,104670.0,1.16969556]
[1750379412265,0.45503128,104680.0,104670.0,1.16969556]
[1750379413265,0.58845096,104680.0,104670.0,1.16969556]
[1750379413971,0.35627278,104680.0,104670.0,1.16969556]
[1750379414167,0.27748823,104680.0,104670.0,1.16969556]
[1750379415265,0.27748823,104680.0,104670.0,1.75069556]
[1750379415562,0.23937246,104680.0,104670.0,1.75069556]
[1750379416272,0.23937246,104680.0,104670.0,1.53171637]
[1750379416471,0.23937246,104680.0,104670.0,1.75069556]
[1750379416973,0.25248699,104680.0,104670.0,1.75069556]
[1750379418362,0.23937246,104680.0,104670.0,1.94175955]
[1750379421273,0.14406855,104680.0,104670.0,2.16073874]
[1750379421492,0.23933531,104680.0,104670.0,1.94175955]
[1750379425275,0.23933531,104680.0,104670.0,1.75069556]
[1750379427883,0.09526676,104680.0,104670.0,1.96967475]
[1750379428475,0.09526676,104680.0,104670.0,1.75069556]
[1750379428676,0.09526676,104680.0,104670.0,1.96967475]
[1750379429076,0.09526676,104680.0,104670.0,1.75069556]
[1750379429686,0.09526676,104680.0,104670.0,1.96967475]
[1750379429880,0.09526676,104680.0,104670.0,1.53171637]
[1750379430076,0.09526676,104680.0,104670.0,1.16969556]
[1750379430386,0.09526676,104680.0,104670.0,1.75057556]
[1750379433694,0.09526676,104680.0,104670.0,2.11137556]
[1750379435688,0.31424595,104680.0,104670.0,2.04677556]
[1750379435987,0.09526676,104680.0,104670.0,2.04677556]
[1750379436180,0.09526676,104680.0,104670.0,2.32985475]
[1750379436382,0.09526676,104680.0,104670.0,2.11087556]
[1750379437284,0.0312,104690.0,104680.0,0.1910241]
[1750379437485,8e-08,104700.0,104690.0,0.1910058]
[1750379437692,0.0606,104710.0,104700.0,0.1909876]
[1750379437881,0.0606,104710.0,104700.0,1.01994598]
[1750379438188,0.20398835,104710.0,104700.0,1.63328598]
[1750379438988,0.20398835,104710.0,104700.0,1.41434353]
[1750379439376,0.20398835,104710.0,104700.0,1.41634353]
[1750379439787,0.20498835,104710.0,104700.0,1.41534353]
[1750379440889,0.20498835,104710.0,104700.0,1.71004353]
[1750379441187,0.20498835,104710.0,104700.0,1.70904353]
[1750379441389,0.20598835,104710.0,104700.0,1.70904353]
[1750379442490,0.20598835,104710.0,104700.0,1.69972605]
[1750379442790,0.14538835,104710.0,104700.0,1.69972605]
[1750379443694,0.14538835,104710.0,104700.0,1.93473165]
[1750379443889,0.002,104710.0,104700.0,1.93473165]
[1750379444586,0.002,104710.0,104700.0,1.35389165]
[1750379444890,0.132,104710.0,104700.0,1.07217572]
[1750379445088,0.0656,104710.0,104700.0,1.07257572]
[1750379445289,0.0656,104710.0,104700.0,1.65333572]
[1750379445587,0.0656,104710.0,104700.0,1.65293572]
[1750379445785,0.0656,104710.0,104700.0,1.65333572]
[1750379446500,0.16063449,104710.0,104700.0,1.65333572]
[1750379447086,0.19153449,104710.0,104700.0,1.65333572]
[1750379450285,0.19153449,104710.0,104700.0,1.65750979]
[1750379452398,0.84905759,104710.0,104700.0,0.49693386]
[1750379452696,1.42973759,104710.0,104700.0,0.49653386]
[1750379452900,1.56278343,104710.0,104700.0,0.49693386]
[1750379453192,1.3745784,104710.0,104700.0,0.48054419]
[1750379453402,1.64038317,104710.0,104700.0,0.48054419]
[1750379453588,1.77342901,104710.0,104700.0,0.48054419]
[1750379454002,1.77342901,104710.0,104700.0,0.48094419]
[1750379454489,1.64038317,104710.0,104700.0,0.48094419]
[1750379455594,1.87342901,104710.0,104700.0,0.48054419]
[1750379455794,1.87342901,104710.0,104700.0,0.48094419]
[1750379456495,2.46652901,104710.0,104700.0,0.48094419]
[1750379460701,2.46652901,104710.0,104700.0,0.18624419]
[1750379461103,2.46652901,104710.0,104700.0,0.18584419]
[1750379461304,2.46652901,104710.0,104700.0,0.18624419]
[1750379462304,3.12656095,104710.0,104700.0,0.00457407]
[1750379462606,3.60029918,104710.0,104700.0,0.00015339]
[1750379462904,3.73334469,104710.0,104700.0,0.00040001]
[1750379464008,3.73334469,104710.0,104700.0,0.19138761]
[1750379464794,3.73334469,104710.0,104700.0,0.00040001]
[1750379464995,3.73334469,104710.0,104700.0,0.19138761]
[1750379465906,3.48334469,104710.0,104700.0,0.19138761]
[1750379466408,2.84592868,104710.0,104700.0,0.19138761]
[1750379466608,3.42708868,104710.0,104700.0,0.19138761]
[1750379469403,3.42708868,104710.0,104700.0,0.00040001]
[1750379470306,3.23501302,104710.0,104700.0,0.19138751]
[1750379470505,3.43501302,104710.0,104700.0,0.19138751]
[1750379472817,3.30196751,104710.0,104700.0,0.19138751]
[1750379473114,3.44520261,104710.0,104690.0,0.5319465]
[1750379473314,0.9038409,104700.0,104690.0,0.7229522]
[1750379473506,0.37303747,104700.0,104690.0,0.7229522]
[1750379473811,1.09704208,104700.0,104690.0,0.7229522]
[1750379474310,1.59704208,104700.0,104690.0,0.7239522]
[1750379474513,1.59704208,104700.0,104690.0,0.7249522]
[1750379475014,1.59704208,104700.0,104690.0,0.7239522]
[1750379475215,1.59704208,104700.0,104690.0,0.7249522]
[1750379475714,1.09704208,104700.0,104690.0,0.7249522]
[1750379476523,1.28802968,104700.0,104690.0,0.7249522]
[1750379477016,1.09704208,104700.0,104690.0,0.7249522]
[1750379477218,1.28802968,104700.0,104690.0,0.7249522]
[1750379477718,1.15499221,104700.0,104690.0,0.7249522]
[1750379479717,1.15499221,104700.0,104690.0,0.72912627]
[1750379480718,0.96400461,104700.0,104690.0,0.72912627]
[1750379481418,1.15499221,104700.0,104690.0,0.72912627]
[1750379482718,1.28802968,104700.0,104690.0,0.72912627]
[1750379483219,1.09704208,104700.0,104690.0,0.72912627]
[1750379483407,0.96400461,104700.0,104690.0,0.72912627]
[1750379484824,1.15499221,104700.0,104690.0,0.72912627]
[1750379485121,1.37400814,104700.0,104690.0,0.72912627]
[1750379487023,1.73580814,104700.0,104690.0,0.72812627]
[1750379487325,1.73580814,104700.0,104690.0,0.72852627]
[1750379487524,1.89904561,104700.0,104690.0,0.72752627]
[1750379489225,1.76600814,104700.0,104690.0,0.72752627]
[1750379489523,1.79670814,104700.0,104690.0,0.72712627]
[1750379489917,1.93023693,104700.0,104690.0,0.72752627]
[1750379490323,1.79670814,104700.0,104690.0,0.72752627]
[1750379490626,2.29670814,104700.0,104690.0,0.72738899]
[1750379494930,2.29670814,104700.0,104690.0,0.67963809]
[1750379495729,2.07769221,104700.0,104690.0,0.67963809]